fUST/lending_fUST_20240820
["ID","MTS","AMOUNT","RATE_DAILY","PERIOD"]
[335329769,1724116254394,-465.00207427,0.00017462,2]
[335329770,1724116254403,-377.3813,0.000175,2]
[335329771,1724116254413,-500.0,0.00017534,2]
[335329772,1724116254422,-500.0,0.00017534,2]
[335329773,1724116254432,-500.0,0.00017534,2]
[335329774,1724116254444,-500.0,0.00017534,2]
[335329775,1724116254455,-500.0,0.00017534,2]
[335329776,1724116254465,-500.0,0.00017534,2]
[335329777,1724116254476,-500.0,0.00017534,2]
[335329778,1724116254488,-500.0,0.00017534,2]
[335329779,1724116254499,-500.0,0.00017534,2]
[335329780,1724116254508,-500.0,0.00017534,2]
[335329781,1724116254517,-500.0,0.00017534,2]
[335329782,1724116254528,-431.47989311,0.00017534,2]
[335329783,1724116254538,-500.0,0.00017534,2]
[335329784,1724116254549,-500.0,0.00017534,2]
[335329785,1724116254559,-283.60157155,0.00017534,2]
[335329786,1724116254570,-500.0,0.00017534,2]
[335329787,1724116254581,-500.0,0.00017534,2]
[335329788,1724116254591,-200.70580461,0.00017534,2]
[335329789,1724116254601,-500.0,0.00017534,2]
[335329790,1724116254611,-500.0,0.00017534,2]
[335329791,1724116254620,-500.0,0.00017534,2]
[335329792,1724116254629,-500.0,0.00017534,2]
[335329793,1724116254638,-500.0,0.00017534,2]
[335329794,1724116254648,-884.86,0.00017534,2]
[335329795,1724116254657,-500.0,0.00017534,2]
[335329796,1724116254667,-500.0,0.00017534,2]
[335329797,1724116254678,-500.0,0.00017534,2]
[335329798,1724116254688,-500.0,0.00017534,2]
[335329799,1724116254698,-500.0,0.00017534,2]
[335329800,1724116254707,-500.0,0.00017534,2]
[335329801,1724116254716,-500.0,0.00017534,2]
[335329802,1724116254726,-500.0,0.00017534,2]
[335329803,1724116254735,-2005.0,0.00017534,10]
[335329804,1724116254745,-2413.34,0.00017534,2]
[335329805,1724116254756,-1193.49,0.00017534,2]
[335329806,1724116254765,-500.0,0.00017534,2]
[335329807,1724116254774,-500.0,0.00017534,2]
[335329808,1724116254784,-803.56,0.00017534,2]
[335329809,1724116254793,-500.0,0.00017534,2]
[335329810,1724116254805,-500.0,0.00017534,2]
[335329811,1724116254814,-500.0,0.00017534,2]
[335329812,1724116254823,-500.0,0.00017534,2]
[335329813,1724116254833,-533.07366567,0.00017534,2]
[335329814,1724116254843,-500.0,0.00017534,2]
[335329815,1724116254853,-500.0,0.00017534,2]
[335329816,1724116254862,-500.0,0.00017534,2]
[335329817,1724116254874,-2813.78,0.00017534,2]
[335329818,1724116254885,-500.0,0.00017534,2]
[335329819,1724116254896,-500.0,0.00017534,2]
[335329820,1724116254906,-975.69,0.00017534,2]
[335329821,1724116254917,-151.0,0.00017534,2]
[335329822,1724116254927,-158.3,0.00017534,2]
[335329823,1724116254939,-691.54,0.00017534,2]
[335329824,1724116254949,-500.0,0.00017534,2]
[335329825,1724116254959,-500.0,0.00017534,2]
[335329826,1724116254970,-500.0,0.00017534,2]
[335329827,1724116254980,-904.82,0.00017534,2]
[335329828,1724116254989,-500.0,0.00017534,2]
[335329829,1724116255001,-500.0,0.00017534,2]
[335329830,1724116255011,-500.0,0.00017534,2]
[335329831,1724116255020,-500.0,0.00017534,2]
[335329832,1724116255029,-500.0,0.00017534,2]
[335329833,1724116255039,-500.0,0.00017534,2]
[335329834,1724116255052,-500.0,0.00017534,2]
[335329835,1724116255064,-1397.41,0.00017534,2]
[335329836,1724116255076,-1194.3,0.00017534,2]
[335329837,1724116255086,-500.0,0.00017534,2]
[335329838,1724116255097,-500.0,0.00017534,2]
[335329839,1724116255108,-3042.19,0.00017534,2]
[335329840,1724116255119,-500.0,0.00017534,2]
[335329841,1724116255129,-500.0,0.00017534,2]
[335329842,1724116255139,-500.0,0.00017534,2]
[335329843,1724116255151,-500.0,0.00017534,2]
[335329844,1724116255160,-500.0,0.00017534,2]
[335329845,1724116255169,-500.0,0.00017534,2]
[335329846,1724116255179,-500.0,0.00017534,2]
[335329847,1724116255189,-1181.38,0.00017534,2]
[335329848,1724116255199,-500.0,0.00017534,2]
[335329849,1724116255209,-1459.56,0.00017534,2]
[335329850,1724116255219,-500.0,0.00017534,2]
[335329851,1724116255231,-500.0,0.00017534,2]
[335329852,1724116255242,-3820.93,0.00017534,2]
[335329853,1724116255254,-500.0,0.00017534,2]
[335329854,1724116255263,-500.0,0.00017534,2]
[335329855,1724116255274,-557.31743411,0.00017534,2]
[335329856,1724116255284,-586.17,0.00017534,2]
[335329857,1724116255294,-500.0,0.00017534,2]
[335329858,1724116255305,-500.0,0.00017534,2]
[335329859,1724116255315,-500.0,0.00017534,2]
[335329860,1724116255327,-712.42,0.00017534,2]
[335329861,1724116255339,-500.0,0.00017534,2]
[335329862,1724116255350,-500.0,0.00017534,2]
[335329863,1724116255360,-500.0,0.00017534,2]
[335329864,1724116255371,-500.0,0.00017534,2]
[335329865,1724116255382,-439.12657901,0.00017534,2]
[335329866,1724116255392,-500.0,0.00017534,2]
[335329867,1724116255402,-500.0,0.00017534,2]
[335329868,1724116255412,-500.0,0.00017534,2]
[335329869,1724116255423,-500.0,0.00017534,2]
[335329870,1724116255433,-500.0,0.00017534,2]
[335329871,1724116255443,-500.0,0.00017534,2]
[335329872,1724116255453,-742.13,0.00017534,2]
[335329873,1724116255463,-516.07758477,0.00017534,2]
[335329874,1724116255474,-500.0,0.00017534,2]
[335329875,1724116255486,-500.0,0.00017534,2]
[335329876,1724116255497,-500.0,0.00017534,2]
[335329877,1724116255507,-500.0,0.00017534,2]
[335329878,1724116255517,-500.0,0.00017534,2]
[335329879,1724116255528,-500.0,0.00017534,2]
[335329880,1724116255538,-505.58,0.00017534,2]
[335329881,1724116255550,-500.0,0.00017534,2]
[335329882,1724116255560,-500.0,0.00017534,2]
[335329883,1724116255570,-716.5,0.00017534,2]
[335329884,1724116255582,-500.0,0.00017534,2]
[335329885,1724116255593,-500.0,0.00017534,2]
[335329886,1724116255604,-500.0,0.00017534,2]
[335329887,1724116255615,-500.0,0.00017534,2]
[335329888,1724116255625,-936.08,0.00017534,2]
[335329889,1724116255637,-377.3813,0.000178,2]
[335329890,1724116255647,-500.0,0.00017808,2]
[335329891,1724116255658,-500.0,0.00017808,2]
[335329892,1724116255669,-500.0,0.00017808,2]
[335329893,1724116255681,-500.0,0.00017808,2]
[335329894,1724116255693,-500.0,0.00017808,2]
[335329895,1724116255703,-500.0,0.00017808,2]
[335329896,1724116255714,-500.0,0.00017808,2]
[335329897,1724116255727,-500.0,0.00017808,2]
[335329898,1724116255736,-583.40798673,0.00017808,2]
[335329899,1724116255747,-500.0,0.00017808,2]
[335329900,1724116255758,-500.0,0.00017808,2]
[335329901,1724116255768,-500.0,0.00017808,2]
[335329902,1724116255779,-509.04404385,0.00017808,2]
[335329903,1724116255791,-383.99122268,0.00017808,2]
[335329904,1724116255805,-541.95691383,0.00017808,2]
[335329905,1724116255815,-500.0,0.00017808,2]
[335329906,1724116255825,-500.0,0.00017808,2]
[335329907,1724116255835,-500.0,0.00017808,2]
[335329908,1724116255846,-500.0,0.00017808,2]
[335329909,1724116255857,-884.86,0.00017808,2]
[335329910,1724116255867,-500.0,0.00017808,2]
[335329911,1724116255877,-500.0,0.00017808,2]
[335329912,1724116255889,-585.54017335,0.00017808,2]
[335329913,1724116255901,-500.0,0.00017808,2]
[335329914,1724116255913,-500.0,0.00017808,2]
[335329915,1724116255923,-500.0,0.00017808,2]
[335329916,1724116255933,-500.0,0.00017808,2]
[335329917,1724116255944,-339.95881554,0.00017808,2]
[335329918,1724116255953,-2005.0,0.00017808,10]
[335329919,1724116255963,-2413.34,0.00017808,2]
[335329920,1724116255973,-1193.49,0.00017808,2]
[335329921,1724116255984,-500.0,0.00017808,2]
[335329922,1724116255994,-500.0,0.00017808,2]
[335329923,1724116256005,-803.56,0.00017808,2]
[335329924,1724116256016,-247.23672394,0.00017808,2]
[335329925,1724116256026,-500.0,0.00017808,2]
[335329926,1724116256038,-500.0,0.00017808,2]
[335329927,1724116256051,-500.0,0.00017808,2]
[335329928,1724116256061,-340.7057766,0.00017808,2]
[335329929,1724116256070,-500.0,0.00017808,2]
[335329930,1724116256079,-500.0,0.00017808,2]
[335329931,1724116256088,-2813.78,0.00017808,2]
[335329932,1724116256098,-350.57567463,0.00017808,2]
[335329933,1724116256107,-500.0,0.00017808,2]
[335329934,1724116256118,-975.69,0.00017808,2]
[335329935,1724116256129,-151.0,0.00017808,2]
[335329936,1724116256139,-158.3,0.00017808,2]
[335329937,1724116256150,-691.54,0.00017808,2]
[335329938,1724116256161,-500.0,0.00017808,2]
[335329939,1724116256171,-500.0,0.00017808,2]
[335329940,1724116256182,-500.0,0.00017808,2]
[335329941,1724116256192,-904.82,0.00017808,2]
[335329942,1724116256202,-500.0,0.00017808,2]
[335329943,1724116256213,-500.0,0.00017808,2]
[335329944,1724116256223,-500.0,0.00017808,2]
[335329945,1724116256234,-500.0,0.00017808,2]
[335329946,1724116256245,-500.0,0.00017808,2]
[335329947,1724116256256,-500.0,0.00017808,2]
[335329948,1724116256267,-500.0,0.00017808,2]
[335329949,1724116256276,-1397.41,0.00017808,2]
[335329950,1724116256288,-1194.3,0.00017808,2]
[335329951,1724116256300,-500.0,0.00017808,2]
[335329952,1724116256436,-500.0,0.00017808,2]
[335329953,1724116256447,-3042.19,0.00017808,2]
[335329954,1724116256459,-500.0,0.00017808,2]
[335329955,1724116256468,-500.0,0.00017808,2]
[335329956,1724116256478,-500.0,0.00017808,2]
[335329957,1724116256487,-500.0,0.00017808,2]
[335329958,1724116256496,-500.0,0.00017808,2]
[335329959,1724116256509,-500.0,0.00017808,2]
[335329960,1724116256518,-500.0,0.00017808,2]
[335329961,1724116256529,-1181.38,0.00017808,2]
[335329962,1724116256540,-500.0,0.00017808,2]
[335329963,1724116256551,-1459.56,0.00017808,2]
[335329964,1724116256559,-500.0,0.00017808,2]
[335329965,1724116256568,-500.0,0.00017808,2]
[335329966,1724116256578,-3820.93,0.00017808,2]
[335329967,1724116256588,-500.0,0.00017808,2]
[335329968,1724116256598,-500.0,0.00017808,2]
[335329969,1724116256608,-586.17,0.00017808,2]
[335329970,1724116256617,-500.0,0.00017808,2]
[335329971,1724116256627,-500.0,0.00017808,2]
[335329972,1724116256636,-500.0,0.00017808,2]
[335329973,1724116256645,-712.42,0.00017808,2]
[335329974,1724116256655,-500.0,0.00017808,2]
[335329975,1724116256666,-500.0,0.00017808,2]
[335329976,1724116256679,-500.0,0.00017808,2]
[335329977,1724116256690,-500.0,0.00017808,2]
[335329978,1724116256701,-500.0,0.00017808,2]
[335329979,1724116256713,-500.0,0.00017808,2]
[335329980,1724116256726,-500.0,0.00017808,2]
[335329981,1724116256737,-500.0,0.00017808,2]
[335329982,1724116256748,-500.0,0.00017808,2]
[335329983,1724116256761,-500.0,0.00017808,2]
[335329984,1724116256773,-742.13,0.00017808,2]
[335329985,1724116256786,-429.27451053,0.00017808,2]
[335329986,1724116256800,-500.0,0.00017808,2]
[335329987,1724116256810,-500.0,0.00017808,2]
[335329988,1724116256820,-500.0,0.00017808,2]
[335329989,1724116256830,-500.0,0.00017808,2]
[335329990,1724116256840,-500.0,0.00017808,2]
[335329991,1724116256852,-505.58,0.00017808,2]
[335329992,1724116256865,-500.0,0.00017808,2]
[335329993,1724116256879,-500.0,0.00017808,2]
[335329994,1724116256891,-716.5,0.00017808,2]
[335329995,1724116256902,-292.6754,0.00017808,2]
[335329996,1724116256914,-500.0,0.00017808,2]
[335329997,1724116256925,-500.0,0.00017808,2]
[335329998,1724116256936,-500.0,0.00017808,2]
[335329999,1724116256947,-936.08,0.00017808,2]
[335330000,1724116256957,-153.0,0.00017859,2]
[335330001,1724116256968,-173.5013981,0.00017859,2]
[335330002,1724116256979,-153.0,0.00017859,2]
[335330003,1724116256991,-800.0,0.00017887,2]
[335330004,1724116257002,-19850.97262223,0.00017898,2]
[335330005,1724116257012,-1630.14883371,0.000179,2]
[335330006,1724116257021,-1630.14883369,0.000179,2]
[335330007,1724116257031,-1630.14883369,0.000179,2]
[335330008,1724116257043,-1630.14883369,0.000179,2]
[335330009,1724116257055,-2316.67039689,0.000179,2]
[335330010,1724116257065,-2316.67039688,0.000179,2]
[335330011,1724116257074,-2316.67039688,0.000179,2]
[335330012,1724116257085,-2316.67039688,0.000179,2]
[335330013,1724116257095,-500.0,0.00017942,2]
[335330014,1724116257105,-205.90909309,0.00018,2]
[335330015,1724116257116,-500.0,0.00018082,2]
[335330016,1724116257126,-500.0,0.00018082,2]
[335330017,1724116257137,-500.0,0.00018082,2]
[335330018,1724116257146,-500.0,0.00018082,2]
[335330019,1724116257157,-500.0,0.00018082,2]
[335330020,1724116257167,-500.0,0.00018082,2]
[335330021,1724116257176,-500.0,0.00018082,2]
[335330022,1724116257185,-500.0,0.00018082,2]
[335330023,1724116257194,-500.0,0.00018082,2]
[335330024,1724116257206,-500.0,0.00018082,2]
[335330025,1724116257218,-500.0,0.00018082,2]
[335330026,1724116257228,-500.0,0.00018082,2]
[335330027,1724116257239,-500.0,0.00018082,2]
[335330028,1724116257249,-500.0,0.00018082,2]
[335330029,1724116257260,-500.0,0.00018082,2]
[335330030,1724116257271,-884.86,0.00018082,2]
[335330031,1724116257282,-500.0,0.00018082,2]
[335330032,1724116257292,-500.0,0.00018082,2]
[335330033,1724116257303,-500.0,0.00018082,2]
[335330034,1724116257315,-500.0,0.00018082,2]
[335330035,1724116257327,-500.0,0.00018082,2]
[335330036,1724116257337,-500.0,0.00018082,2]
[335330037,1724116257349,-2413.34,0.00018082,2]
[335330038,1724116257360,-1193.49,0.00018082,2]
[335330039,1724116257372,-500.0,0.00018082,2]
[335330040,1724116257382,-594.82512289,0.00018082,2]
[335330041,1724116257392,-803.56,0.00018082,2]
[335330042,1724116257401,-500.0,0.00018082,2]
[335330043,1724116257412,-500.0,0.00018082,2]
[335330044,1724116257423,-500.0,0.00018082,2]
[335330045,1724116257433,-581.66133801,0.00018082,2]
[335330046,1724116257444,-500.0,0.00018082,2]
[335330047,1724116257455,-2813.78,0.00018082,2]
[335330048,1724116257466,-500.0,0.00018082,2]
[335330049,1724116257476,-975.69,0.00018082,2]
[335330050,1724116257486,-151.0,0.00018082,2]
[335330051,1724116257495,-158.3,0.00018082,2]
[335330052,1724116257507,-691.54,0.00018082,2]
[335330053,1724116257519,-500.0,0.00018082,2]
[335330054,1724116257529,-500.0,0.00018082,2]
[335330055,1724116257540,-500.0,0.00018082,2]
[335330056,1724116257549,-904.82,0.00018082,2]
[335330057,1724116257558,-500.0,0.00018082,2]
[335330058,1724116257569,-500.0,0.00018082,2]
[335330059,1724116257579,-500.0,0.00018082,2]
[335330060,1724116257591,-500.0,0.00018082,2]
[335330061,1724116257602,-500.0,0.00018082,2]
[335330062,1724116257613,-500.0,0.00018082,2]
[335330063,1724116257623,-500.0,0.00018082,2]
[335330064,1724116257635,-1397.41,0.00018082,2]
[335330065,1724116257645,-1194.3,0.00018082,2]
[335330066,1724116257656,-500.0,0.00018082,2]
[335330067,1724116257667,-500.0,0.00018082,2]
[335330068,1724116257681,-3042.19,0.00018082,2]
[335330069,1724116257691,-500.0,0.00018082,2]
[335330070,1724116257700,-500.0,0.00018082,2]
[335330071,1724116257710,-500.0,0.00018082,2]
[335330072,1724116257720,-500.0,0.00018082,2]
[335330073,1724116257730,-500.0,0.00018082,2]
[335330074,1724116257739,-500.0,0.00018082,2]
[335330075,1724116257749,-500.0,0.00018082,2]
[335330076,1724116257759,-1181.38,0.00018082,2]
[335330077,1724116257768,-500.0,0.00018082,2]
[335330078,1724116257777,-1459.56,0.00018082,2]
[335330079,1724116257787,-500.0,0.00018082,2]
[335330080,1724116257797,-500.0,0.00018082,2]
[335330081,1724116257808,-61.67812249,0.00018082,2]
[335330082,1724116257921,-559.40693983,0.00018082,2]
[335330083,1724116258385,-188.56371582,7.911e-05,2]
[335330084,1724116258395,-155.03482305,7.954e-05,2]
[335330085,1724116258405,-3463.35736676,0.00011731,2]
[335330086,1724116258467,-5000.0,7.875e-05,2]
[335330087,1724116258478,-38948.24227994,0.00011731,2]
[335330088,1724116258488,-2712.58332809,0.00012989,2]
[335330089,1724116258497,-404.43330921,0.00012989,2]
[335330090,1724116258507,-688.676981,0.00012989,2]
[335330091,1724116258516,-520.61647298,0.00013496,2]
[335330092,1724116258526,-155.06130741,0.00013496,2]
[335330093,1724116258536,-228.29494814,0.00013496,2]
[335330094,1724116258546,-182.35195424,0.00013497,2]
[335330095,1724116258558,-154.76012181,0.00013596,2]
[335330096,1724116258568,-576.445183,0.00013699,2]
[335330097,1724116258578,-441.063071,0.00013699,2]
[335330098,1724116258588,-441.063071,0.00013699,2]
[335330099,1724116258598,-576.445183,0.00013699,2]
[335330100,1724116258607,-576.445183,0.00015637,2]
[335330101,1724116258617,-5244.78933856,0.00015849,2]
[335330102,1724116258626,-576.445183,0.00016,2]
[335330103,1724116258635,-576.445183,0.0001636,2]
[335330104,1724116258644,-29441.97254419,0.00016438,5]
[335330105,1724116258654,-576.445183,0.00016438,2]
[335330106,1724116258665,-576.445183,0.00016438,2]
[335330107,1724116258674,-576.44519234,0.00016438,2]
[335330108,1724116258687,-500.0,0.00016986,2]
[335330109,1724116258697,-500.0,0.0001726,2]
[335330110,1724116258706,-500.0,0.00017534,2]
[335330111,1724116258716,-500.0,0.00017808,2]
[335330112,1724116258727,-3199.84493768,0.00018082,2]
[335330113,1724116258737,-500.0,0.00018082,2]
[335330114,1724116258747,-644.86472159,0.00018082,2]
[335330115,1724116258757,-586.17,0.00018082,2]
[335330116,1724116258767,-500.0,0.00018082,2]
[335330117,1724116258776,-500.0,0.00018082,2]
[335330118,1724116258787,-500.0,0.00018082,2]
[335330119,1724116258796,-712.42,0.00018082,2]
[335330120,1724116258807,-500.0,0.00018082,2]
[335330121,1724116258816,-500.0,0.00018082,2]
[335330122,1724116258825,-500.0,0.00018082,2]
[335330123,1724116258835,-500.0,0.00018082,2]
[335330124,1724116258846,-500.0,0.00018082,2]
[335330125,1724116258858,-500.0,0.00018082,2]
[335330126,1724116258867,-500.0,0.00018082,2]
[335330127,1724116258877,-500.0,0.00018082,2]
[335330128,1724116258886,-500.0,0.00018082,2]
[335330129,1724116258896,-500.0,0.00018082,2]
[335330130,1724116258905,-742.13,0.00018082,2]
[335330131,1724116258915,-500.0,0.00018082,2]
[335330132,1724116258923,-500.0,0.00018082,2]
[335330133,1724116258933,-500.0,0.00018082,2]
[335330134,1724116258942,-500.0,0.00018082,2]
[335330135,1724116258952,-500.0,0.00018082,2]
[335330136,1724116258961,-505.58,0.00018082,2]
[335330137,1724116258970,-500.0,0.00018082,2]
[335330138,1724116258980,-500.0,0.00018082,2]
[335330139,1724116258990,-716.5,0.00018082,2]
[335330140,1724116258999,-500.0,0.00018082,2]
[335330141,1724116259009,-500.0,0.00018082,2]
[335330142,1724116259019,-324.90592727,0.00018082,2]
[335330143,1724116259028,-936.08,0.00018082,2]
[335330144,1724116259037,-500.0,0.00018082,2]
[335330145,1724116259047,-9444.39953667,0.00018105,2]
[335330146,1724116259057,-9444.39953667,0.00018105,2]
[335330147,1724116259066,-3000.0,0.000182,2]
[335330148,1724116259075,-300.0,0.000182,7]
[335330149,1724116259085,-500.0,0.00018245,2]
[335330150,1724116259094,-1200.0,0.00018291,2]
[335330151,1724116259103,-500.0,0.00018308,2]
[335330152,1724116259112,-3500.0,0.00018308,2]
[335330153,1724116259122,-465.00010371,0.00018335,2]
[335330154,1724116259131,-500.0,0.00018356,2]
[335330155,1724116259140,-500.0,0.00018356,2]
[335330156,1724116259149,-500.0,0.00018356,2]
[335330157,1724116259261,-500.0,0.00018356,2]
[335330158,1724116259287,-613.51627791,0.00018356,2]
[335330159,1724116259297,-508.50000001,0.00018356,2]
[335330160,1724116259307,-500.0,0.00018356,2]
[335330161,1724116259316,-500.0,0.00018356,2]
[335330162,1724116259326,-500.0,0.00018356,2]
[335330163,1724116259335,-500.0,0.00018356,2]
[335330164,1724116259344,-500.0,0.00018356,2]
[335330165,1724116259353,-508.30529992,0.00018356,2]
[335330166,1724116259362,-500.0,0.00018356,2]
[335330167,1724116259372,-500.0,0.00018356,2]
[335330168,1724116259382,-884.86,0.00018356,2]
[335330169,1724116259391,-500.0,0.00018356,2]
[335330170,1724116259400,-500.0,0.00018356,2]
[335330171,1724116259409,-500.0,0.00018356,2]
[335330172,1724116259419,-500.0,0.00018356,2]
[335330173,1724116259428,-500.0,0.00018356,2]
[335330174,1724116259438,-500.0,0.00018356,2]
[335330175,1724116259447,-2413.34,0.00018356,2]
[335330176,1724116259456,-1193.49,0.00018356,2]
[335330177,1724116259466,-500.0,0.00018356,2]
[335330178,1724116259475,-803.56,0.00018356,2]
[335330179,1724116259485,-500.0,0.00018356,2]
[335330180,1724116259494,-500.0,0.00018356,2]
[335330181,1724116259503,-500.0,0.00018356,2]
[335330182,1724116259512,-500.0,0.00018356,2]
[335330183,1724116259521,-2813.78,0.00018356,2]
[335330184,1724116259530,-500.0,0.00018356,2]
[335330185,1724116259539,-151.0,0.00018356,2]
[335330186,1724116259549,-158.3,0.00018356,2]
[335330187,1724116259559,-500.0,0.00018356,2]
[335330188,1724116259569,-500.0,0.00018356,2]
[335330189,1724116259578,-904.82,0.00018356,2]
[335330190,1724116259588,-500.0,0.00018356,2]
[335330191,1724116259598,-411.72772124,0.00018356,2]
[335330192,1724116259607,-500.0,0.00018356,2]
[335330193,1724116259617,-500.0,0.00018356,2]
[335330194,1724116259627,-500.0,0.00018356,2]
[335330195,1724116259636,-500.0,0.00018356,2]
[335330196,1724116259654,-500.0,0.00018356,2]
[335330197,1724116259665,-1397.41,0.00018356,2]
[335330198,1724116259675,-1194.3,0.00018356,2]
[335330199,1724116259688,-500.0,0.00018356,2]
[335330200,1724116259698,-508.45972431,0.00018356,2]
[335330201,1724116259708,-3042.19,0.00018356,2]
[335330202,1724116259718,-500.0,0.00018356,2]
[335330203,1724116259729,-500.0,0.00018356,2]
[335330204,1724116259739,-500.0,0.00018356,2]
[335330205,1724116259750,-349.83274276,0.00018356,2]
[335330206,1724116259759,-154.75665622,0.00018356,2]
[335330207,1724116259769,-500.0,0.00018356,2]
[335330208,1724116259778,-500.0,0.00018356,2]
[335330209,1724116259787,-1181.38,0.00018356,2]
[335330210,1724116259796,-500.0,0.00018356,2]
[335330211,1724116259807,-1459.56,0.00018356,2]
[335330212,1724116259816,-500.0,0.00018356,2]
[335330213,1724116259825,-185.99973568,0.00018356,2]
[335330214,1724116259834,-3820.93,0.00018356,2]
[335330215,1724116259844,-500.0,0.00018356,2]
[335330216,1724116259854,-586.17,0.00018356,2]
[335330217,1724116259863,-500.0,0.00018356,2]
[335330218,1724116259874,-500.0,0.00018356,2]
[335330219,1724116259883,-500.0,0.00018356,2]
[335330220,1724116259893,-712.42,0.00018356,2]
[335330221,1724116259902,-500.0,0.00018356,2]
[335330222,1724116259912,-500.0,0.00018356,2]
[335330223,1724116259921,-167.49747865,0.00018356,2]
[335330224,1724116259931,-500.0,0.00018356,2]
[335330225,1724116259941,-500.0,0.00018356,2]
[335330226,1724116259951,-505.94286734,0.00018356,2]
[335330227,1724116259961,-500.0,0.00018356,2]
[335330228,1724116259972,-500.0,0.00018356,2]
[335330229,1724116259984,-500.0,0.00018356,2]
[335330230,1724116259994,-500.0,0.00018356,2]
[335330231,1724116260003,-742.13,0.00018356,2]
[335330232,1724116260014,-500.0,0.00018356,2]
[335330233,1724116260025,-418.37832474,0.00018356,2]
[335330234,1724116260039,-81.62167526,0.00018356,2]
[335330235,1724116260050,-500.0,0.00018356,2]
[335330236,1724116260060,-500.0,0.00018356,2]
[335330237,1724116260070,-500.0,0.00018356,2]
[335330238,1724116260080,-505.58,0.00018356,2]
[335330239,1724116260089,-500.0,0.00018356,2]
[335330240,1724116260099,-500.0,0.00018356,2]
[335330241,1724116260108,-716.5,0.00018356,2]
[335330242,1724116260117,-500.0,0.00018356,2]
[335330243,1724116260126,-500.0,0.00018356,2]
[335330244,1724116260135,-936.08,0.00018356,2]
[335330245,1724116260145,-500.0,0.00018356,2]
[335330246,1724116260155,-88.11694291,0.00018375,2]
[335330251,1724116494690,189.5355741,7.136e-05,2]
[335330253,1724116535743,-5000.0,7.718e-05,2]
[335330254,1724116535768,-250.0,7.891e-05,2]
[335330255,1724116535790,-155.26706188,7.911e-05,2]
[335330256,1724116535817,-250.0,7.913e-05,2]
[335330257,1724116535839,-250.0,7.934e-05,2]
[335330258,1724116535866,-250.0,7.956e-05,2]
[335330259,1724116535891,-250.0,7.977e-05,2]
[335330260,1724116535914,-250.0,7.999e-05,2]
[335330261,1724116535939,-250.0,8.021e-05,2]
[335330262,1724116535964,-250.0,8.042e-05,2]
[335330263,1724116535987,-250.0,8.064e-05,2]
[335330264,1724116536010,-250.0,8.086e-05,2]
[335330265,1724116536036,-250.0,8.107e-05,2]
[335330266,1724116536059,-250.0,8.129e-05,2]
[335330267,1724116536085,-250.0,8.151e-05,2]
[335330268,1724116536107,-250.0,8.172e-05,2]
[335330269,1724116536133,-250.0,8.194e-05,2]
[335330270,1724116536159,-250.0,8.216e-05,2]
[335330271,1724116536183,-250.0,8.237e-05,2]
[335330272,1724116536207,-250.0,8.259e-05,2]
[335330273,1724116536232,-250.0,8.281e-05,2]